bitfinex/quotes_ETHUSD_20220309
["timestamp","ask_amount","ask_price","bid_price","bid_amount"]
[1646862020265,0.535,2704.3,2703.5,0.07294206]
[1646862020464,0.835,2704.3,2703.4,0.1849]
[1646862021070,0.835,2704.3,2703.3,0.00393612]
[1646862021071,0.00374788,2704.0,2703.3,0.00393612]
[1646862021266,0.53874788,2704.0,2703.3,0.00393612]
[1646862021465,0.83874788,2704.0,2703.3,0.00393612]
[1646862021965,0.835,2704.0,2703.3,0.00067719]
[1646862022164,0.0037479,2703.8,2703.3,0.00393612]
[1646862022367,0.535,2703.7,2703.3,0.00393612]
[1646862022766,0.535,2703.7,2702.5,0.017501]
[1646862022767,5.5,2703.6,2702.5,0.017501]
[1646862022967,0.535,2703.5,2702.5,0.017501]
[1646862023165,0.535,2703.5,2701.9,0.017501]
[1646862023367,1.76057,2703.5,2701.9,0.017501]
[1646862023575,1.22564,2703.5,2702.5,0.95156912]
[1646862023822,1.85240065,2704.0,2703.0,0.92693041]
[1646862024032,2.77796405,2704.1,2703.0,1.95743041]
[1646862024228,2.77624,2704.1,2703.1,0.08518919]
[1646862024927,2.77624,2704.1,2703.5,1.04656688]
[1646862025132,0.00172405,2704.5,2703.6,3.5804729]
[1646862025329,1.26348232,2704.9,2704.6,0.0034481]
[1646862025530,0.03908232,2704.9,2704.6,0.0034481]
[1646862026528,0.03908232,2704.9,2704.6,1.04833398]
[1646862027127,0.04293983,2704.9,2704.6,1.04833398]
[1646862027965,0.03908232,2704.9,2704.6,1.04833398]
[1646862028165,0.04293983,2704.9,2704.6,1.04833398]
[1646862028770,0.04293983,2704.9,2704.6,0.0034481]
[1646862029171,0.03908232,2704.9,2704.6,0.0034481]
[1646862029371,0.04293983,2704.9,2704.6,0.0034481]
[1646862029772,0.34293983,2704.9,2704.6,0.0034481]
[1646862030376,0.03908232,2704.9,2704.6,0.0034481]
[1646862030575,0.04185715,2704.9,2704.6,0.0034481]
[1646862031431,0.03908232,2704.9,2704.6,0.0034481]
[1646862031829,0.04287396,2704.9,2704.6,0.0034481]
[1646862032232,1.89269536,2704.9,2704.6,0.0034481]
[1646862032429,3.944,2704.8,2704.6,0.0034481]
[1646862032632,3.5,2704.7,2704.6,0.0034481]
[1646862032834,4.944,2704.7,2704.6,0.0034481]
[1646862033237,5.8691384,2704.7,2704.6,0.0034481]
[1646862033433,5.8691384,2704.7,2703.5,0.07730681]
[1646862033634,0.92503,2704.4,2703.6,1.53628986]
[1646862033834,5.8691384,2704.7,2703.6,1.53628986]
[1646862033835,2.3691384,2704.7,2703.6,1.53628986]
[1646862034045,1.0,2704.7,2703.6,1.53628986]
[1646862034235,0.00379188,2704.2,2703.7,0.0712334]
[1646862034435,0.01516526,2704.6,2704.5,0.00758375]
[1646862034835,0.01516526,2704.6,2704.5,1.08188163]
[1646862035266,0.03908232,2704.9,2704.5,1.08188163]
[1646862035565,0.03908232,2704.9,2704.5,1.15455987]
[1646862036674,0.03908232,2704.9,2704.6,1.53587935]
[1646862037568,1.74896516,2705.4,2704.7,3.0]
[1646862037769,1.78439668,2705.4,2704.8,1.53587935]
[1646862038072,1.78439668,2705.4,2704.8,2.66417935]
[1646862038272,1.78439668,2705.4,2704.9,1.53587935]
[1646862038671,1.78439668,2705.4,2705.0,1.80682452]
[1646862038917,1.78439668,2705.4,2705.1,1.53587935]
[1646862039117,5.926e-05,2705.3,2705.1,1.53587935]
[1646862039323,5.926e-05,2705.3,2705.2,0.07740174]
[1646862039522,5.926e-05,2705.3,2705.2,2.30639734]
[1646862039717,5.926e-05,2705.3,2705.2,1.61328109]
[1646862039918,0.0306676,2705.5,2705.2,1.61328109]
[1646862040120,0.05147662,2705.8,2705.4,5.5]
[1646862040322,1.1826024,2706.5,2706.4,0.90400756]
[1646862040323,0.0178024,2706.5,2706.4,0.90400756]
[1646862040521,0.0178024,2706.5,2706.4,1.64420756]
[1646862040721,0.0178024,2706.5,2706.4,3.18008691]
[1646862041324,0.0178024,2706.5,2706.4,2.92358691]
[1646862041525,0.20901244,2706.5,2706.4,2.18338691]
[1646862041721,0.28130248,2706.5,2706.4,2.18338691]
[1646862043675,0.33370186,2706.5,2706.4,2.18338691]
[1646862045279,4.0,2706.4,2705.7,0.66817461]
[1646862045481,0.97020271,2706.2,2705.7,0.66817461]
[1646862045678,1.41420271,2706.2,2705.7,0.66817461]
[1646862045878,1.41420271,2706.2,2705.6,0.66817461]
[1646862046313,0.00386447,2706.1,2705.6,0.66817461]
[1646862046513,1.84919,2706.0,2705.6,0.66817461]
[1646862046716,0.00386447,2706.1,2705.6,0.66817461]
[1646862047316,0.22359526,2706.2,2705.6,0.66817461]
[1646862047516,0.00386451,2706.0,2705.6,0.66817461]
[1646862047917,0.00386451,2706.0,2705.8,0.98029741]
[1646862048317,0.17880884,2706.2,2705.9,0.07998042]
[1646862048718,0.00374105,2706.0,2705.9,0.07998042]
[1646862049520,0.13407668,2706.0,2705.9,0.07998042]
[1646862049727,0.13407668,2706.0,2705.7,0.2825]
[1646862049921,0.13407668,2706.0,2705.6,0.08178928]
[1646862050170,0.13407668,2706.0,2705.4,0.25708856]
[1646862050367,0.13407668,2706.0,2705.4,0.07238856]
[1646862050569,0.92452,2705.9,2705.4,0.07238856]
[1646862050771,0.92452,2705.9,2705.1,0.07197429]
[1646862050971,0.92452,2705.9,2705.1,1.23366493]
[1646862051174,0.92452,2705.9,2705.2,0.07706516]
[1646862051572,0.96132576,2705.9,2705.2,0.07706516]
[1646862052175,0.00385067,2705.7,2705.2,0.07706516]
[1646862052574,0.04065643,2705.7,2705.2,0.07706516]
[1646862053178,0.03680576,2705.7,2705.2,0.07706516]
[1646862053378,0.03680576,2705.7,2704.8,0.0775376]
[1646862053379,0.92849071,2705.6,2704.8,0.0775376]
[1646862053581,0.92849071,2705.6,2704.6,0.08375212]
[1646862053582,3.944,2705.5,2704.6,0.08375212]
[1646862053813,0.444,2705.5,2704.6,0.08375212]
[1646862054219,0.444,2705.5,2704.5,0.1042491]
[1646862054420,0.444,2705.5,2704.7,1.20178309]
[1646862054620,0.00385052,2705.4,2704.7,1.20178309]
[1646862054821,0.00385052,2705.4,2704.8,0.06909641]
[1646862055620,0.01500288,2705.6,2704.8,0.06909641]
[1646862055819,0.00366005,2705.4,2704.8,0.06909641]
[1646862056723,0.9248,2705.2,2704.5,0.01633375]
[1646862057124,3.5,2705.1,2704.5,0.01633375]
[1646862057321,3.5,2705.1,2704.5,0.00758375]
[1646862057322,0.023096,2704.9,2704.5,0.00758375]
[1646862057764,0.444,2704.8,2704.5,0.00758375]
[1646862058368,1.369,2704.8,2704.5,0.00758375]
[1646862058769,4.869,2704.8,2704.5,0.00758375]
[1646862058969,1.369,2704.8,2704.5,0.00758375]
[1646862060177,0.0465784,2704.7,2704.5,0.00758375]
[1646862060370,0.444,2704.6,2704.5,0.00758375]
[1646862063026,2.4223,2705.0,2704.5,0.00758375]
[1646862063225,2.8758,2705.1,2704.5,0.00758375]
[1646862063425,0.461501,2705.2,2704.5,0.07925713]
[1646862063624,0.317501,2705.2,2704.5,0.07925713]
[1646862063824,0.017501,2705.2,2704.5,0.07925713]
[1646862064931,3.517501,2705.2,2704.5,0.00758375]
[1646862065171,0.9249307,2704.9,2704.5,0.00758375]
[1646862065374,0.92486,2704.9,2704.5,0.00758375]
[1646862065872,1.66886,2704.9,2704.5,0.00758375]
[1646862066071,1.874177,2704.7,2704.5,0.00758375]
[1646862066270,0.444,2704.6,2704.5,0.00758375]
[1646862066472,1.36911,2704.6,2704.5,0.00758375]
[1646862066676,1.66911,2704.6,2704.5,0.00758375]
[1646862067772,1.36911,2704.6,2704.5,0.00758375]
[1646862067979,0.444,2704.6,2704.5,0.00758375]
[1646862068372,0.92487,2704.9,2704.5,0.00758375]
[1646862068818,0.87487,2704.9,2704.5,0.00758375]
[1646862069025,1.31887,2704.9,2704.5,0.00758375]
[1646862070024,2.2438146,2704.9,2704.5,0.00758375]
[1646862070226,0.3,2704.8,2704.5,0.00758375]
[1646862070426,0.024915,2704.6,2704.5,0.00758375]
[1646862070632,1.394025,2704.6,2704.5,0.00758375]
[1646862071829,1.694025,2704.6,2704.5,0.00758375]
[1646862073867,1.36911,2704.6,2704.5,0.00758375]
[1646862074070,0.92487,2704.9,2704.5,0.00758375]
[1646862075473,1.22487,2704.9,2704.5,0.00758375]
[1646862075673,0.92487,2704.9,2704.5,0.00758375]
[1646862077933,0.01543884,2705.3,2704.7,0.39313667]
[1646862078131,0.01543884,2705.3,2704.9,0.3721]
[1646862078330,0.01543884,2705.3,2704.9,0.08976524]
[1646862078535,0.01500288,2705.6,2704.7,0.09637651]
[1646862078729,0.01500288,2705.6,2704.7,0.08408984]
[1646862078730,0.00385979,2705.4,2704.7,0.08408984]
[1646862078933,0.94789909,2705.4,2704.7,1.15581903]
[1646862079133,0.94789909,2705.4,2704.8,0.08047714]
[1646862079533,0.9247673,2705.4,2704.8,0.08047714]
[1646862079735,0.9247673,2705.4,2704.5,0.00758375]
[1646862079736,0.019943,2705.2,2704.5,0.00758375]
[1646862080172,0.9248786,2705.1,2704.5,0.00758375]
[1646862080569,0.463943,2705.2,2704.5,0.00758375]
[1646862080771,0.444,2705.2,2704.7,1.03949776]
[1646862080972,0.017501,2705.4,2704.8,0.08981426]
[1646862082371,0.02118629,2705.4,2704.8,0.08981426]
[1646862083172,0.017501,2705.4,2704.8,0.08981426]
[1646862083377,0.02125454,2705.4,2704.8,0.08981426]
[1646862083829,0.02125454,2705.4,2704.5,0.00758375]
[1646862084025,0.944532,2705.2,2704.5,0.00758375]
[1646862084227,0.019742,2705.2,2704.5,0.00758375]
[1646862085228,0.019742,2705.2,2704.8,0.95879857]
[1646862085427,0.019742,2705.2,2704.9,0.0745804]
[1646862085828,0.02125444,2705.4,2704.9,0.0745804]
[1646862086827,0.017501,2705.4,2704.5,0.00758375]
[1646862087027,0.92481,2705.2,2704.5,0.00758375]
[1646862087230,1.22481,2705.2,2704.5,0.00758375]
[1646862087430,0.762245,2705.2,2704.5,0.00758375]
[1646862087675,0.019851,2705.0,2704.5,0.00758375]
[1646862087876,0.444,2705.0,2704.5,0.00758375]
[1646862088076,0.019963,2704.8,2704.5,0.00758375]
[1646862088476,0.01999595,2705.4,2704.5,0.00758375]
[1646862088679,0.01830778,2705.4,2704.5,0.00758375]
[1646862089279,0.017501,2705.5,2704.5,0.00758375]
[1646862089482,0.00366161,2705.4,2704.8,1.12082216]
[1646862089682,0.00366161,2705.4,2704.9,0.08576131]
[1646862090482,0.03214714,2705.5,2704.9,0.08576131]
[1646862090483,0.017501,2705.5,2704.9,0.08576131]
[1646862090681,0.00368285,2705.4,2704.9,0.08576131]
[1646862090882,0.92838285,2705.4,2704.9,0.08576131]
[1646862091086,1.22838285,2705.4,2704.9,0.08576131]
[1646862091318,0.018984,2705.3,2704.9,0.08576131]
[1646862091918,1.2247,2705.4,2704.6,0.0755797]
[1646862091919,0.019363,2705.1,2704.6,0.0755797]
[1646862092122,1.36898,2705.2,2704.5,0.00758375]
[1646862092319,0.020456,2704.9,2704.5,0.00758375]
[1646862092521,0.744,2705.2,2704.5,0.00758375]
[1646862092522,3.5,2705.1,2704.5,0.00758375]
[1646862092719,0.017901,2704.9,2704.5,0.00758375]
[1646862093924,0.461901,2704.9,2704.5,0.00758375]
[1646862094525,0.92494,2704.8,2704.5,0.00758375]
[1646862094726,1.22494,2704.8,2704.5,0.00758375]
[1646862095168,0.018794,2704.7,2704.5,0.00758375]
[1646862095367,0.551794,2704.7,2704.5,0.00758375]
[1646862095581,0.019356,2704.6,2704.5,0.00758375]
[1646862095774,5.902466,2704.6,2704.5,0.00758375]
[1646862096173,7.202466,2704.6,2704.5,0.00758375]
[1646862096374,2.777366,2704.6,2704.5,0.00758375]
[1646862096983,1.852356,2704.6,2704.5,0.00758375]
[1646862097174,0.833,2704.6,2704.5,0.00758375]
[1646862097374,0.533,2704.6,2704.5,0.00758375]
[1646862097773,0.533,2704.9,2704.5,0.00758375]
[1646862097976,0.833,2704.9,2704.5,0.00758375]
[1646862098577,0.3,2704.9,2704.5,0.00758375]
[1646862099226,1.22486,2705.0,2704.5,0.00758375]
[1646862100924,4.44560821,2705.3,2704.6,1.53589682]
[1646862100925,0.01471821,2705.3,2704.6,1.53589682]
[1646862101124,0.01471821,2705.3,2704.7,0.07605238]
[1646862101324,0.33250388,2705.6,2704.7,0.07605238]
[1646862101524,0.01471781,2705.3,2704.7,0.07605238]
[1646862101924,0.01471781,2705.3,2704.9,1.07988348]
[1646862102131,0.92476,2705.2,2704.7,0.07514156]
[1646862102425,0.92476,2705.2,2704.5,0.00758375]
[1646862102426,0.026135,2704.8,2704.5,0.00758375]
[1646862102968,0.533,2705.0,2704.5,0.00758375]
[1646862103170,0.019842,2704.6,2704.5,0.00758375]
[1646862104971,0.552842,2704.6,2704.5,0.00758375]
[1646862105178,0.552842,2704.6,2703.8,0.00306445]
[1646862105179,16.85,2704.5,2703.8,0.00306445]
[1646862105374,1.850687,2704.3,2703.8,0.00306445]
[1646862105676,0.029168,2703.9,2703.8,0.00306445]
[1646862105874,0.562168,2703.9,2703.8,0.00306445]
[1646862106076,0.562168,2703.9,2703.1,1.53663311]
[1646862106315,0.022917,2703.2,2703.1,1.53663311]
[1646862106516,0.533,2703.4,2703.3,0.045834]
[1646862106716,3.58274336,2703.6,2703.3,0.045834]
[1646862106916,0.3,2703.4,2703.3,0.045834]
[1646862107122,0.533,2703.4,2703.3,0.045834]
[1646862107523,1.8509222,2703.8,2703.3,0.045834]
[1646862107524,1.1534,2703.9,2703.3,0.04889905]
[1646862107722,0.00168817,2704.2,2703.4,1.6268533]
[1646862107921,0.53468817,2704.3,2703.6,1.19635586]
[1646862108122,0.533,2704.3,2703.7,0.08279412]
[1646862108724,0.533,2704.3,2703.8,0.00307214]
[1646862108725,0.9252,2704.0,2703.8,0.00307214]
[1646862109123,1.2252,2704.0,2703.8,0.00307214]
[1646862109323,0.533,2703.9,2703.8,0.00307214]
[1646862109524,0.533,2703.9,2703.3,0.045834]
[1646862109726,0.833,2703.9,2703.3,0.045834]
[1646862109937,2.68368,2703.9,2703.8,0.00307219]
[1646862110205,3.68368,2703.9,2703.8,0.00307219]
[1646862110796,3.68368,2703.9,2703.3,0.045834]
[1646862110797,0.92533,2703.7,2703.3,0.045834]
[1646862110995,1.45833,2703.7,2703.3,0.045834]
[1646862111198,1.75833,2703.7,2703.3,0.045834]
[1646862112297,1.75833,2703.7,2703.4,0.00306387]
[1646862112503,1.22533,2703.7,2703.4,0.00306387]
[1646862112700,1.22533,2703.7,2703.4,2.79155374]
[1646862112899,0.3,2703.7,2703.4,1.25501513]
[1646862113099,0.3,2703.7,2703.4,0.08704126]
[1646862113298,3.15068,2703.9,2703.3,0.045834]
[1646862113499,3.15068,2703.9,2703.4,0.00306381]
[1646862113928,3.68368,2703.9,2703.4,0.00306381]
[1646862114129,2.68368,2703.9,2703.4,0.00306381]
[1646862114330,3.68368,2703.9,2703.3,0.045834]
[1646862114531,1.8506623,2703.7,2703.3,0.045834]
[1646862114729,3.3343423,2703.9,2703.5,0.0030637]
[1646862115134,2.3343423,2703.9,2703.5,0.0030637]
[1646862115329,2.38507817,2704.3,2703.6,0.022287]
[1646862115529,1.85039,2704.3,2703.6,0.022287]
[1646862115932,1.85039,2704.3,2703.6,0.02535193]
[1646862116133,1.85039,2704.3,2703.8,0.0705526]
[1646862116531,2.15039,2704.3,2703.8,0.0705526]
[1646862116934,3.0755778,2704.3,2703.6,0.022287]
[1646862117133,3.0755778,2704.3,2703.8,0.00306461]
[1646862117333,0.92519,2704.2,2703.8,0.00306461]
[1646862117785,3.0,2703.9,2703.8,0.00306461]
[1646862117979,3.0,2703.9,2703.3,0.045834]
[1646862117980,0.444,2703.9,2703.3,0.045834]
[1646862118178,0.010501,2703.6,2703.3,0.045834]
[1646862118379,0.454501,2703.6,2703.3,0.045834]
[1646862118580,0.92544,2703.5,2703.3,0.045834]
[1646862118779,3.444,2703.4,2703.3,0.045834]
[1646862119183,5.0,2703.3,2703.0,0.00769791]
[1646862119385,5.0,2703.3,2702.1,0.07502924]
[1646862119386,1.41248954,2703.2,2702.1,0.07502924]
[1646862119585,0.936341,2702.9,2701.9,0.06952536]
[1646862119783,3.0,2702.6,2702.0,1.53727244]
[1646862119988,1.3698,2702.8,2701.3,0.08308331]
[1646862119989,0.010501,2702.1,2701.3,0.08308331]
[1646862120187,0.010501,2702.1,2700.8,7.32]
[1646862120188,0.444,2702.0,2701.4,1.53750576]
[1646862120389,3.0,2702.3,2701.5,1.61205934]
[1646862120390,0.444,2701.9,2701.5,1.61205934]
[1646862120582,0.444,2701.9,2701.2,0.0804481]
[1646862120583,0.444,2701.8,2701.2,0.0804481]
[1646862120783,1.8523,2701.7,2701.6,0.00092312]
[1646862121086,2.2963,2701.7,2701.6,0.00092312]
[1646862121536,2.2963,2701.7,2701.4,0.09021859]
[1646862121933,2.2963,2701.7,2701.5,0.00092314]
[1646862122135,1.3,2701.8,2701.5,0.00092314]
[1646862122338,2.8519,2702.1,2701.5,0.00092314]
[1646862122537,0.3,2702.1,2701.5,0.00092314]
[1646862122739,0.44568817,2702.4,2701.8,0.024039]
[1646862122941,3.1519,2702.4,2701.8,0.024039]
[1646862123137,3.1519,2702.4,2701.8,0.11141564]
[1646862123536,0.444,2702.4,2701.8,0.11141564]
[1646862124339,0.92579,2702.3,2702.0,0.00345258]
[1646862125182,0.92579,2702.3,2701.8,0.11141564]
[1646862125593,0.92579,2702.3,2702.0,0.00345252]
[1646862125986,2.777671,2702.3,2702.0,0.00345252]
[1646862126186,1.8519,2702.1,2702.0,0.00345252]
[1646862126385,1.8519,2702.1,2701.1,0.021001]
[1646862126585,1.8519,2702.1,2701.2,1.53738616]
[1646862126786,1.8519,2702.1,2702.0,0.00298728]
[1646862127185,1.862401,2702.1,2702.0,0.00298728]
[1646862127585,1.862401,2702.1,2701.5,0.96180874]
[1646862127786,1.862401,2702.1,2701.9,0.0029874]
[1646862128192,1.3,2702.2,2702.1,1.63985144]
[1646862128587,0.3,2702.2,2702.1,1.63985144]
[1646862129032,0.92571,2702.6,2702.2,0.07166959]
[1646862129233,1.22571,2702.6,2702.2,0.07166959]
[1646862129434,1.66971,2702.6,2702.1,1.63985144]
[1646862130336,1.85175,2702.5,2702.2,0.00298706]
[1646862130538,3.944,2702.4,2702.2,0.00298706]
[1646862130744,3.5,2702.3,2702.2,0.00298706]
[1646862130938,3.5,2702.3,2702.1,1.63985144]
[1646862130939,2.0,2702.2,2702.1,1.63985144]
[1646862131138,4.92156859,2702.2,2702.1,1.63985144]
[1646862131337,5.22156859,2702.2,2702.1,1.63985144]
[1646862131639,6.22156859,2702.2,2702.1,1.64290665]
[1646862132238,5.5,2702.1,2700.9,0.08721046]
[1646862132440,9.22156859,2702.2,2701.1,0.07490562]
[1646862132441,0.92621,2701.8,2701.1,0.07490562]
[1646862132676,0.92621,2701.8,2700.6,5.2858]
[1646862132677,0.444,2701.7,2701.3,0.07568778]
[1646862132880,0.444,2701.7,2700.5,0.0768207]
[1646862132881,3.5,2701.7,2700.5,0.0768207]
[1646862133079,3.5,2701.7,2700.6,1.53777305]
[1646862133080,0.444,2701.6,2700.6,1.53777305]
[1646862133281,4.4263328,2701.5,2700.8,0.027691]
[1646862133482,0.92635,2701.3,2700.8,0.027691]
[1646862133679,0.444,2701.2,2700.1,0.021001]
[1646862133882,0.444,2701.2,2700.2,1.53799082]
[1646862134080,1.85271,2701.0,2700.3,0.07358092]
[1646862134281,0.444,2700.9,2700.4,1.56184982]
[1646862134481,0.444,2700.9,2700.7,0.02667]
[1646862134684,0.444,2700.9,2700.7,1.14219798]
[1646862134883,0.444,2700.9,2700.8,0.07351515]
[1646862135581,0.444,2700.9,2700.7,1.14329355]
[1646862135582,0.444,2700.9,2700.7,0.02776557]
[1646862135983,0.444,2700.9,2700.7,0.02667]
[1646862136432,0.444,2700.9,2700.8,1.13378284]
[1646862136632,0.444,2700.9,2700.8,1.61780888]
[1646862136834,0.3,2701.0,2700.8,1.61780888]
[1646862137033,0.444,2701.1,2700.9,0.028036]
[1646862137236,0.744,2701.1,2700.9,0.028036]
[1646862137634,2.59656,2701.1,2700.9,0.028036]
[1646862137838,2.59656,2701.1,2700.8,0.00364413]
[1646862138038,3.59656,2701.1,2700.8,0.00364413]
[1646862138545,3.59656,2701.1,2700.6,0.07402265]
[1646862138738,0.9263021,2701.0,2700.8,0.00364406]
[1646862138939,0.444,2700.9,2700.8,0.00364406]
[1646862139139,0.744,2700.9,2700.8,0.00364406]
[1646862139741,0.744,2700.9,2700.6,0.07616558]
[1646862139941,0.744,2700.9,2700.7,0.00327977]
[1646862140378,0.744,2700.9,2700.7,1.5412129]
[1646862140980,0.744,2700.9,2700.7,1.53793313]
[1646862141183,0.744,2700.9,2700.7,1.54121296]
[1646862141584,0.744,2700.9,2700.7,0.00327983]
[1646862141986,0.744,2700.9,2700.6,0.07616558]
[1646862142184,0.744,2700.9,2700.0,0.09505146]
[1646862142384,0.92637,2700.6,2700.2,0.027255]
[1646862142583,0.92637,2700.6,2700.3,1.5381362]
[1646862142785,1.22637,2700.6,2700.4,0.09049649]
[1646862142985,1.22637,2700.6,2700.5,1.5381362]
[1646862143189,4.0,2700.5,2699.9,0.07321875]
[1646862143385,4.0,2700.5,2699.5,0.0780161]
[1646862143386,0.010501,2700.2,2699.5,0.0780161]
[1646862143586,0.444,2700.1,2699.2,0.021001]
[1646862143851,0.444,2700.1,2699.4,0.026403]
[1646862144040,0.744,2700.1,2699.4,0.026403]
[1646862144545,0.744,2700.1,2699.5,0.9889732]
[1646862144740,0.744,2700.1,2700.0,0.92089956]
[1646862144942,3.5239934,2700.1,2700.0,0.95006756]
[1646862145142,2.59735,2700.1,2700.0,0.95006756]
[1646862145340,3.59735,2700.1,2700.0,0.95006756]
[1646862145944,3.59735,2700.1,2700.0,0.92089956]
[1646862146143,1.0,2700.4,2700.0,0.94712956]
[1646862146347,0.3,2700.2,2700.0,0.94712956]
[1646862146543,0.444,2700.6,2700.2,0.89999999]
[1646862146845,11.35,2702.2,2700.4,0.029168]
[1646862146846,4.16,2701.2,2700.4,0.029168]
[1646862147047,1.1807,2701.2,2700.8,0.87526657]
[1646862147242,0.92615,2701.2,2700.8,1.94206657]
[1646862148284,1.13810746,2701.3,2700.8,1.94206657]
[1646862148484,1.13810746,2701.3,2700.9,0.00304509]
[1646862148891,0.92615,2701.2,2700.9,0.00304509]
[1646862149284,0.92615,2701.2,2700.8,0.87526657]
[1646862149486,0.92615,2701.2,2700.9,0.00304503]
[1646862150387,0.92615,2701.2,2700.8,0.87526657]
[1646862150886,0.92615,2701.2,2700.9,0.00305829]
[1646862151728,0.92615,2701.2,2700.8,0.87526657]
[1646862151929,0.92615,2701.2,2700.9,0.00305829]
[1646862152736,4.42615,2701.2,2700.9,0.00305829]
[1646862152937,0.92615,2701.2,2700.8,0.89626757]
[1646862153138,1.92615,2701.2,2700.9,0.00305829]
[1646862153340,0.92615,2701.2,2700.9,0.00305829]
[1646862153838,0.03423205,2701.1,2700.9,0.00305829]
[1646862154043,0.03423205,2701.1,2700.8,0.89626757]
[1646862154238,0.03423205,2701.1,2700.9,0.0030547]
[1646862154639,0.96052435,2701.1,2700.9,0.0030547]
[1646862154939,4.46052435,2701.1,2700.9,0.0030547]
[1646862155192,0.3,2701.0,2700.6,0.021001]
[1646862155390,0.92634,2700.9,2700.6,0.021001]
[1646862155791,0.92634,2700.9,2700.6,0.09900701]
[1646862156196,0.92634,2700.9,2700.8,0.029168]
[1646862156602,0.92634,2700.9,2700.6,0.09900701]
[1646862156896,0.92634,2700.9,2700.6,0.10206205]
[1646862157096,0.92634,2700.9,2700.8,0.029168]
[1646862157697,1.3,2701.0,2700.8,0.029168]
[1646862157898,0.03423205,2701.1,2700.9,0.029168]
[1646862158096,0.03423205,2701.1,2701.0,0.93396662]
[1646862158296,0.03423205,2701.1,2701.0,1.00781943]
[1646862158695,2.33182851,2701.8,2701.0,1.00781943]
[1646862158945,2.33016964,2701.8,2701.2,0.029168]
[1646862159141,2.63016964,2701.8,2701.2,0.029168]
[1646862159334,0.9261,2701.5,2701.4,0.029168]
[1646862159536,0.9261,2701.5,2701.2,0.029168]
[1646862159736,1.2261,2701.5,2701.2,0.029168]
[1646862160336,1.2261,2701.5,2701.2,0.03223065]
[1646862160736,3.5,2701.4,2701.2,0.03223065]
[1646862160937,0.444,2701.3,2701.2,0.00306265]
[1646862161140,5.5,2701.2,2700.2,0.99010881]
[1646862161342,5.5,2701.2,2700.2,0.89999999]
[1646862161343,3.92659,2700.9,2700.2,0.89999999]
[1646862161540,4.8706666,2700.8,2700.2,0.89999999]
[1646862161742,5.1706666,2700.8,2700.2,0.89999999]
[1646862161939,8.07283226,2700.8,2700.2,0.89999999]
[1646862162138,0.04892052,2700.6,2700.2,0.53922572]
[1646862162340,5.944,2700.5,2699.4,0.07023815]
[1646862162582,0.92676,2700.3,2699.4,0.07023815]
[1646862162782,0.9267517,2700.1,2699.4,0.07023815]
[1646862162983,0.9267517,2700.1,2699.1,0.08003214]
[1646862162984,3.944,2700.0,2699.1,0.08003214]
[1646862163183,6.9929346,2700.0,2699.2,1.53882608]
[1646862163381,1.85368,2699.9,2699.2,1.53882608]
[1646862163582,3.944,2699.8,2698.9,1.53882608]
[1646862163782,3.944,2699.8,2699.0,1.53882608]
[1646862163783,5.87094,2699.8,2699.0,1.53882608]
[1646862163985,2.7807483,2699.6,2699.1,1.61575349]
[1646862164185,2.7807483,2699.6,2699.2,1.60849773]
[1646862164186,0.444,2699.5,2699.2,1.60849773]
[1646862164388,0.444,2699.5,2699.3,1.53882608]
[1646862164584,0.444,2699.5,2699.4,1.53882608]
[1646862164585,0.744,2699.5,2699.4,1.53882608]
[1646862164786,0.744,2699.5,2699.1,1.53882608]
[1646862164986,0.744,2699.5,2699.2,0.07491752]
[1646862165185,0.744,2699.5,2699.3,1.53991829]
[1646862166188,0.744,2699.5,2699.3,1.53882608]
[1646862166439,0.744,2699.5,2699.3,1.54245912]
[1646862166637,0.744,2699.5,2699.4,1.53882608]
[1646862167235,0.744,2699.5,2699.2,2.75367501]
[1646862167435,0.744,2699.5,2699.3,1.54245906]
[1646862168337,5.45637184,2699.6,2699.3,1.54245906]
[1646862168636,2.40037184,2699.6,2699.3,1.54245912]
[1646862168939,1.40037184,2699.6,2699.3,1.54245912]
[1646862169141,0.02760442,2699.4,2699.3,1.54245912]
[1646862169550,3.97160442,2699.4,2699.3,0.00363304]
[1646862169743,0.47160442,2699.4,2698.9,1.53890956]
[1646862169946,0.92699,2699.3,2699.2,0.0032698]
[1646862170182,1.67099,2699.3,2699.2,0.0032698]
[1646862170783,1.67099,2699.3,2699.2,1.62352994]
[1646862171083,1.67099,2699.3,2699.2,1.53890956]
[1646862171783,0.02760442,2699.4,2699.2,1.56278656]
[1646862171985,0.02760442,2699.4,2699.3,1.91100956]
[1646862172384,3.944,2700.8,2699.4,0.11040883]
[1646862172586,3.944,2700.8,2699.9,0.029168]
[1646862172785,0.9264484,2700.7,2700.2,0.028465]
[1646862172989,0.92645,2700.4,2700.2,0.028465]
[1646862173585,0.92645,2700.4,2700.3,0.88560437]
[1646862174435,1.85288,2700.7,2700.3,0.88261621]
[1646862174841,2.15288,2700.7,2700.3,0.88261621]
[1646862175042,3.5,2700.6,2700.2,0.00298827]
[1646862175239,6.88735,2700.6,2700.2,0.00298827]
[1646862175643,0.3,2700.5,2699.7,0.021001]
[1646862175837,0.92663,2700.3,2699.7,0.021001]
[1646862176040,1.46062,2700.2,2699.7,0.021001]
[1646862176437,3.5,2700.1,2699.7,0.021001]
[1646862176638,0.534,2700.0,2699.7,0.021001]
[1646862176839,0.834,2700.0,2699.7,0.021001]
[1646862177240,0.834,2700.0,2699.8,0.00302977]
[1646862177886,0.92663,2699.9,2699.8,0.00302977]
[1646862178086,0.92663,2699.9,2699.7,0.021001]
[1646862178288,0.92663,2699.9,2699.8,0.00302977]
[1646862179096,4.96063,2699.9,2699.8,0.00302977]
[1646862179392,4.96063,2699.9,2699.5,0.021001]
[1646862179393,2.46063,2699.9,2699.5,0.021001]
[1646862179595,2.46063,2699.9,2699.7,0.00302982]
[1646862179794,1.46063,2699.9,2699.7,0.00302982]
[1646862180598,1.46063,2699.9,2699.5,0.021001]
[1646862180797,1.46063,2699.9,2699.7,0.00302388]
[1646862181630,1.46063,2699.9,2699.5,0.021001]
[1646862182031,3.3142475,2699.9,2699.7,0.00302388]
[1646862182233,5.2411075,2699.9,2699.7,0.00302388]
[1646862182432,7.7411075,2699.9,2699.7,0.00302388]
[1646862182637,0.3,2699.8,2699.7,0.00302388]